[Event "36th Indian-ch U13 Girls 2023"]
[Site "Secunderabad"]
[Date "2023.12.08"]
[Round "8.1"]
[White "Gorli Nyna"]
[Black "Shreya G Hipparagi"]
[Result "1/2-1/2"]
[ECO "C54"]
[WhiteElo "1652"]
[BlackElo "1576"]
[Annotator "NA RC"]
[PlyCount "80"]
[EventDate "2023.12.04"]
[EventType "swiss"]
[EventCountry "IND"]
[SourceTitle "playchess.com"]
[Source "ChessBase"]
[SourceQuality "1"]
[TimeControl "5400+30"]

1. e4 {[%emt 0:00:04]} e5 {[%emt 0:00:07]} 2. Nf3 {[%emt 0:00:08]} Nc6 {[%emt 0:00:04]} 3. Bc4 {[%emt 0:00:08]} Bc5 {[%emt 0:00:04]} 4. c3 {[%emt 0:00:04]} Nf6 {[%emt 0:00:05]} 5. d3 {[%emt 0:00:09]} d6 {[%emt 0:00:05]} 6. O-O {[%emt 0:00:15]} O-O {[%emt 0:00:23]} 7. h3 {[%emt 0:00:05]} h6 {[%emt 0:00:22]} 8. Re1 {[%emt 0:00:38]} a6 {[%emt 0:00:08]} 9. a4 {[%emt 0:00:15]} Ba7 {[%emt 0:00:21]} 10. Nbd2 {[%emt 0:00:19]} Nh5 {[%emt 0:01:19]} 11. Nf1 {[%emt 0:03:04]} Qf6 {[%emt 0:00:22]} 12. Be3 {[%emt 0:06:31]} Nf4 {[%emt 0:01:24]} 13. d4 {[%emt 0:14:48]} g6 {[%emt 0:03:21]} 14. Ng3 {[%emt 0:02:16]} h5 {[%emt 0:09:29]} 15. Bxf4 {[%emt 0:10:50]} Qxf4 {[%emt 0:00:31]} 16. Qd3 {[%emt 0:00:21]} Qf6 {[%emt 0:01:51]} 17. Rad1 {[%emt 0:01:35]} Ne7 {[%emt 0:03:20]} 18. Qe3 {[%emt 0:01:58]} Kg7 {[%emt 0:01:20]} 19. b4 {[%emt 0:14:18]} Be6 {[%emt 0:03:10]} 20. Bxe6 {[%emt 0:01:28]} Qxe6 {[%emt 0:00:06]} 21. Qg5 {[%emt 0:02:22]} f6 {[%emt 0:05:09]} 22. Nxh5+ {[%emt 0:02:58]} Kh7 {[%emt 0:02:26]} 23. Ng3 {[%emt 0:00:29]} Kg7 {[%emt 0:03:15]} 24. Qd2 {[%emt 0:04:02]} Rad8 {[%emt 0:00:44]} 25. Rc1 {[%emt 0:02:05]} Qc4 {[%emt 0:10:35]} 26. Qc2 {[%emt 0:02:45]} c6 {[%emt 0:02:54]} 27. Nd2 {[%emt 0:01:13]} Qe6 {[%emt 0:01:01]} 28. Qb3 {[%emt 0:00:24]} Kf7 {[%emt 0:06:58]} 29. Qxe6+ {[%emt 0:02:06]} Kxe6 {[%emt 0:00:06]} 30. Nf3 {[%emt 0:00:08]} Nc8 {[%emt 0:01:22]} 31. a5 {[%emt 0:03:33]} Ne7 {[%emt 0:00:47]} 32. Kf1 {[%emt 0:01:15]} Rd7 {[%emt 0:00:54]} 33. Rcd1 {[%emt 0:01:02]} Rfd8 {[%emt 0:00:15]} 34. c4 {[%emt 0:01:44]} exd4 {[%emt 0:01:28]} 35. Nxd4+ {[%emt 0:00:02]} Bxd4 {[%emt 0:00:11]} 36. Rxd4 {[%emt 0:00:02]} c5 {[%emt 0:00:17]} 37. bxc5 {[%emt 0:03:27]} dxc5 {[%emt 0:00:08]} 38. Rxd7 {[%emt 0:00:04]} Rxd7 {[%emt 0:00:05]} 39. e5 {[%emt 0:00:37]} f5 {[%emt 0:01:20]} 40. Ne2 {[%emt 0:00:47]} Kxe5 {[%emt 0:01:15]} 1/2-1/2

[Event "36th Indian-ch U13 Girls 2023"]
[Site "Secunderabad"]
[Date "2023.12.08"]
[Round "8.2"]
[White "Aamuktha Guntaka"]
[Black "Kirthika B"]
[Result "1/2-1/2"]
[ECO "C65"]
[WhiteElo "1532"]
[BlackElo "1605"]
[Annotator "NA RC"]
[PlyCount "94"]
[EventDate "2023.12.04"]
[EventType "swiss"]
[EventCountry "IND"]
[SourceTitle "playchess.com"]
[Source "ChessBase"]
[SourceQuality "1"]
[TimeControl "5400+30"]

1. e4 {[%emt 0:00:57]} e5 {[%emt 0:00:07]} 2. Nf3 {[%emt 0:00:10]} Nc6 {[%emt 0:00:03]} 3. Bb5 {[%emt 0:00:15]} Nf6 {[%emt 0:00:32]} 4. d3 {[%emt 0:00:20]} Bc5 {[%emt 0:00:31]} 5. Bxc6 {[%emt 0:00:28]} dxc6 {[%emt 0:00:05]} 6. O-O {[%emt 0:00:12]} Qe7 {[%emt 0:02:41]} 7. Nbd2 {[%emt 0:01:05]} Bg4 {[%emt 0:00:34]} 8. h3 {[%emt 0:02:12]} Bh5 {[%emt 0:00:17]} 9. a3 {[%emt 0:02:52]} h6 {[%emt 0:04:44]} 10. Nc4 {[%emt 0:07:47]} O-O-O {[%emt 0:09:12]} 11. Qe2 {[%emt 0:13:54]} Bd6 {[%emt 0:05:23]} 12. Ne3 {[%emt 0:09:30]} g5 {[%emt 0:11:30]} 13. g4 {[%emt 0:15:16]} Bg6 {[%emt 0:00:27]} 14. Kg2 {[%emt 0:05:25]} Bc5 {[%emt 0:12:09]} 15. Nc4 {[%emt 0:08:15]} h5 {[%emt 0:16:46]} 16. Bxg5 {[%emt 0:19:15]} hxg4 {[%emt 0:00:59]} 17. hxg4 {[%emt 0:04:38]} Qe6 {[%emt 0:01:54]} 18. Nfxe5 {[%emt 0:00:55]} b5 {[%emt 0:14:44]} 19. Nxg6 {[%emt 0:00:59]} fxg6 {[%emt 0:01:17]} 20. Bxf6 {[%emt 0:03:18]} Qxf6 {[%emt 0:00:06]} 21. Ne3 {[%emt 0:00:49]} Qf4 {[%emt 0:00:51]} 22. Rh1 {[%emt 0:00:31]} Bd6 {[%emt 0:00:13]} 23. Rag1 {[%emt 0:01:11]} Rh2+ {[%emt 0:05:13]} 24. Rxh2 {[%emt 0:00:37]} Qxh2+ {[%emt 0:00:04]} 25. Kf1 {[%emt 0:00:08]} Rf8 {[%emt 0:00:52]} 26. Rg2 {[%emt 0:00:54]} Qh1+ {[%emt 0:05:15]} 27. Rg1 {[%emt 0:00:09]} Qh2 {[%emt 0:00:20]} 28. Rg2 {[%emt 0:01:46]} Qh3 {[%emt 0:00:46]} 29. Ke1 {[%emt 0:00:38]} Rf3 {[%emt 0:00:18]} 30. Rg1 {[%emt 0:00:30]} Bc5 {[%emt 0:01:40]} 31. Rg3 {[%emt 0:00:31]} Qh1+ {[%emt 0:01:37]} 32. Kd2 {[%emt 0:00:14]} Bxe3+ {[%emt 0:00:18]} 33. Kc3 {[%emt 0:00:34]} Rxg3 {[%emt 0:00:10]} 34. fxg3 {[%emt 0:00:04]} Qg1 {[%emt 0:00:30]} 35. e5 {[%emt 0:01:06]} Qxg3 {[%emt 0:00:42]} 36. Qf1 {[%emt 0:00:28]} Qxe5+ {[%emt 0:00:04]} 37. Kb3 {[%emt 0:00:06]} Qd5+ {[%emt 0:01:35]} 38. c4 {[%emt 0:00:08]} bxc4+ {[%emt 0:00:04]} 39. dxc4 {[%emt 0:00:06]} Qe6 {[%emt 0:02:04]} 40. Qf8+ {[%emt 0:00:15]} Kb7 {[%emt 0:00:11]} 41. Qb4+ {[%emt 0:00:18]} Bb6 {[%emt 0:00:15]} 42. Ka4 {[%emt 0:00:27]} c5 {[%emt 0:01:11]} 43. Qc3 {[%emt 0:00:21]} Qxg4 {[%emt 0:00:23]} 44. Qd3 {[%emt 0:00:10]} Qd4 {[%emt 0:01:33]} 45. Qf3+ {[%emt 0:00:07]} Ka6 {[%emt 0:02:50]} 46. b4 {[%emt 0:01:00]} Qxc4 {[%emt 0:00:00]} 47. Qb7+ {[%emt 0:00:21]} Kxb7 {[%emt 0:00:00]} 1/2-1/2

[Event "36th Indian-ch U13 Girls 2023"]
[Site "Secunderabad"]
[Date "2023.12.08"]
[Round "8.3"]
[White "Nihira Koul"]
[Black "Sherali Pattnaik"]
[Result "1/2-1/2"]
[ECO "A25"]
[WhiteElo "1484"]
[BlackElo "1575"]
[Annotator "NA RC"]
[PlyCount "96"]
[EventDate "2023.12.04"]
[EventType "swiss"]
[EventCountry "IND"]
[SourceTitle "playchess.com"]
[Source "ChessBase"]
[SourceQuality "1"]
[TimeControl "5400+30"]

1. c4 {[%emt 0:00:30]} e5 {[%emt 0:01:08]} 2. Nc3 {[%emt 0:00:15]} Nf6 {[%emt 0:00:05]} 3. g3 {[%emt 0:00:09]} Bb4 {[%emt 0:00:28]} 4. Bg2 {[%emt 0:00:09]} Nc6 {[%emt 0:00:23]} 5. e3 {[%emt 0:02:14]} O-O {[%emt 0:04:05]} 6. Nge2 {[%emt 0:00:32]} d6 {[%emt 0:08:14]} 7. O-O {[%emt 0:02:14]} Bxc3 {[%emt 0:04:07]} 8. Nxc3 {[%emt 0:05:07]} Bf5 {[%emt 0:00:29]} 9. d3 {[%emt 0:07:50]} Nb4 {[%emt 0:06:15]} 10. a3 {[%emt 0:02:47]} Nc6 {[%emt 0:01:42]} 11. b4 {[%emt 0:01:47]} Rb8 {[%emt 0:01:21]} 12. Bb2 {[%emt 0:01:09]} Re8 {[%emt 0:02:38]} 13. Rc1 {[%emt 0:03:54]} Qd7 {[%emt 0:02:39]} 14. Nd5 {[%emt 0:05:20]} Nxd5 {[%emt 0:03:34]} 15. cxd5 {[%emt 0:01:04]} Ne7 {[%emt 0:00:10]} 16. e4 {[%emt 0:01:44]} Bg6 {[%emt 0:01:36]} 17. Qd2 {[%emt 0:05:38]} c6 {[%emt 0:02:01]} 18. d4 {[%emt 0:01:25]} f6 {[%emt 0:12:59]} 19. dxc6 {[%emt 0:22:38]} Nxc6 {[%emt 0:00:56]} 20. dxe5 {[%emt 0:02:34]} fxe5 {[%emt 0:01:49]} 21. Rfd1 {[%emt 0:00:51]} Rbd8 {[%emt 0:02:02]} 22. b5 {[%emt 0:02:52]} Nb8 {[%emt 0:06:33]} 23. a4 {[%emt 0:01:54]} Bf7 {[%emt 0:02:10]} 24. Qd3 {[%emt 0:05:02]} Be6 {[%emt 0:10:29]} 25. Ba3 {[%emt 0:00:47]} Qf7 {[%emt 0:01:35]} 26. Qe3 {[%emt 0:01:41]} Bb3 {[%emt 0:02:17]} 27. Rxd6 {[%emt 0:00:21]} Bxa4 {[%emt 0:01:26]} 28. Qxa7 {[%emt 0:00:36]} Bxb5 {[%emt 0:05:02]} 29. Qb6 {[%emt 0:08:16]} Rxd6 {[%emt 0:01:44]} 30. Bxd6 {[%emt 0:00:03]} Ba6 {[%emt 0:01:21]} 31. Qb2 {[%emt 0:08:40]} Nc6 {[%emt 0:02:18]} 32. Rd1 {[%emt 0:01:25]} Qf6 {[%emt 0:05:07]} 33. Qb3+ {[%emt 0:00:52]} Kh8 {[%emt 0:01:56]} 34. Bc5 {[%emt 0:00:28]} Rd8 {[%emt 0:03:29]} 35. Bb6 {[%emt 0:00:18]} Rxd1+ {[%emt 0:00:49]} 36. Qxd1 {[%emt 0:00:02]} h6 {[%emt 0:00:11]} 37. h4 {[%emt 0:03:13]} Nb4 {[%emt 0:01:50]} 38. Bd8 {[%emt 0:00:51]} Qf8 {[%emt 0:00:53]} 39. Bb6 {[%emt 0:00:31]} Nd3 {[%emt 0:00:41]} 40. Bf1 {[%emt 0:00:44]} Qd6 {[%emt 0:00:31]} 41. Be3 {[%emt 0:00:35]} Qa3 {[%emt 0:00:42]} 42. Qc2 {[%emt 0:00:21]} Kh7 {[%emt 0:01:08]} 43. Qc8 {[%emt 0:00:35]} Qe7 {[%emt 0:00:06]} 44. Qf5+ {[%emt 0:00:37]} Kg8 {[%emt 0:00:36]} 45. Qg6 {[%emt 0:00:26]} Qf7 {[%emt 0:00:38]} 46. Qd6 {[%emt 0:00:20]} Qf8 {[%emt 0:00:40]} 47. Qd5+ {[%emt 0:01:04]} Qf7 {[%emt 0:00:00]} 48. Qd6 {[%emt 0:00:31]} Qf8 {[%emt 0:01:37]} 1/2-1/2

[Event "36th Indian-ch U13 Girls 2023"]
[Site "Secunderabad"]
[Date "2023.12.08"]
[Round "8.4"]
[White "Shivamshika G"]
[Black "Arshiya Das"]
[Result "1/2-1/2"]
[ECO "D43"]
[WhiteElo "1424"]
[BlackElo "1729"]
[Annotator "NA RC"]
[PlyCount "98"]
[EventDate "2023.12.04"]
[EventType "swiss"]
[EventCountry "IND"]
[SourceTitle "playchess.com"]
[Source "ChessBase"]
[SourceQuality "1"]
[TimeControl "5400+30"]

1. d4 {[%emt 0:00:25]} d5 {[%emt 0:00:03]} 2. c4 {[%emt 0:00:18]} c6 {[%emt 0:00:03]} 3. Nc3 {[%emt 0:00:28]} Nf6 {[%emt 1:31:54]} 4. Nf3 {[%emt 0:01:38]} e6 {[%emt 0:00:00]} 5. Bg5 {[%emt 0:00:50]} h6 {[%emt 0:00:00]} 6. Bh4 {[%emt 0:02:54]} dxc4 {[%emt 0:00:00]} 7. e4 {[%emt 0:00:30]} g5 {[%emt 0:00:00]} 8. Bg3 {[%emt 0:00:10]} b5 {[%emt 0:00:00]} 9. Be2 {[%emt 0:01:26]} Nbd7 {[%emt 0:00:00]} 10. Ne5 {[%emt 0:01:29]} Nxe5 {[%emt 0:03:30]} 11. Bxe5 {[%emt 0:00:32]} Bb4 {[%emt 0:00:00]} 12. O-O {[%emt 0:03:40]} Bxc3 {[%emt 0:00:00]} 13. bxc3 {[%emt 0:00:05]} Rg8 {[%emt 0:00:00]} 14. f4 {[%emt 0:02:50]} Nd7 {[%emt 0:00:00]} 15. Bh5 {[%emt 0:08:28]} g4 {[%emt 0:00:00]} 16. Qe1 {[%emt 0:08:56]} Nf6 {[%emt 0:03:00]} 17. Bxf6 {[%emt 0:07:43]} Qxf6 {[%emt 0:00:00]} 18. Qg3 {[%emt 0:00:31]} Rg7 {[%emt 0:00:00]} 19. f5 {[%emt 0:06:44]} exf5 {[%emt 0:00:00]} 20. exf5 {[%emt 0:00:40]} Kf8 {[%emt 0:00:00]} 21. Qf4 {[%emt 0:02:49]} Kg8 {[%emt 0:00:00]} 22. Bxg4 {[%emt 0:09:53]} Qh4 {[%emt 0:00:00]} 23. Be2 {[%emt 0:01:01]} Qg5 {[%emt 0:00:00]} 24. Qxg5 {[%emt 0:01:55]} Rxg5 {[%emt 0:00:00]} 25. g4 {[%emt 0:00:32]} Bd7 {[%emt 0:00:00]} 26. a4 {[%emt 0:01:59]} a5 {[%emt 0:00:00]} 27. h3 {[%emt 0:01:35]} f6 {[%emt 0:05:30]} 28. Kf2 {[%emt 0:01:30]} Rg7 {[%emt 0:00:00]} 29. Bf3 {[%emt 0:01:03]} Ra6 {[%emt 0:00:00]} 30. Rfe1 {[%emt 0:04:20]} Kf8 {[%emt 0:00:00]} 31. d5 {[%emt 0:00:10]} b4 {[%emt 0:00:00]} 32. Reb1 {[%emt 0:12:16]} b3 {[%emt 0:00:00]} 33. dxc6 {[%emt 0:00:12]} Bxc6 {[%emt 0:00:00]} 34. Be2 {[%emt 0:00:15]} Bd5 {[%emt 0:00:00]} 35. Rd1 {[%emt 0:01:20]} Bf7 {[%emt 0:00:00]} 36. Rd8+ {[%emt 0:01:51]} Ke7 {[%emt 0:00:00]} 37. Rad1 {[%emt 0:00:32]} Ra7 {[%emt 0:00:00]} 38. Rb8 {[%emt 0:00:11]} Rg8 {[%emt 0:00:00]} 39. Rb6 {[%emt 0:00:28]} Rd8 {[%emt 0:00:00]} 40. Re1 {[%emt 0:00:49]} Rd2 {[%emt 0:00:00]} 41. Ke3 {[%emt 0:00:12]} Rd6 {[%emt 0:00:33]} 42. Rb5 {[%emt 0:03:57]} Kd8 {[%emt 0:01:06]} 43. Rb8+ {[%emt 0:02:25]} Kc7 {[%emt 0:00:20]} 44. Rf8 {[%emt 0:00:56]} Kb6 {[%emt 0:00:26]} 45. Rb1 {[%emt 0:01:25]} Re7+ {[%emt 0:00:07]} 46. Kf3 {[%emt 0:00:24]} Rd2 {[%emt 0:00:47]} 47. Rxf7 {[%emt 0:00:41]} Rxf7 {[%emt 0:00:15]} 48. Bxc4 {[%emt 0:00:02]} Rc7 {[%emt 0:00:17]} 49. Rxb3+ {[%emt 0:00:05]} Ka7 {[%emt 0:00:30]} 1/2-1/2

[Event "36th Indian-ch U13 Girls 2023"]
[Site "Secunderabad"]
[Date "2023.12.08"]
[Round "8.5"]
[White "Saparya Ghosh"]
[Black "Aadya Gupta"]
[Result "1/2-1/2"]
[ECO "D23"]
[WhiteElo "1662"]
[BlackElo "1460"]
[Annotator "NA RC"]
[PlyCount "60"]
[EventDate "2023.12.04"]
[EventType "swiss"]
[EventCountry "IND"]
[SourceTitle "playchess.com"]
[Source "ChessBase"]
[SourceQuality "1"]
[TimeControl "5400+30"]

1. d4 {[%emt 0:00:12]} d5 {[%emt 0:00:01]} 2. c4 {[%emt 0:00:10]} c6 {[%emt 0:00:03]} 3. Nf3 {[%emt 0:00:07]} Nf6 {[%emt 0:00:06]} 4. Qb3 {[%emt 0:00:05]} dxc4 {[%emt 0:00:04]} 5. Qxc4 {[%emt 0:00:10]} Bg4 {[%emt 0:00:14]} 6. Nbd2 {[%emt 0:00:14]} Nbd7 {[%emt 0:00:32]} 7. g3 {[%emt 0:00:23]} e6 {[%emt 0:00:10]} 8. Bg2 {[%emt 0:00:05]} Be7 {[%emt 0:00:29]} 9. O-O {[%emt 0:00:14]} O-O {[%emt 0:00:34]} 10. Re1 {[%emt 0:06:18]} Rc8 {[%emt 0:04:56]} 11. Qb3 {[%emt 0:03:59]} Qb6 {[%emt 0:01:45]} 12. Nc4 {[%emt 0:00:31]} Qa6 {[%emt 0:05:08]} 13. h3 {[%emt 0:10:12]} Bh5 {[%emt 0:00:48]} 14. e4 {[%emt 0:01:22]} c5 {[%emt 0:04:33]} 15. d5 {[%emt 0:01:50]} Bxf3 {[%emt 0:03:18]} 16. Bxf3 {[%emt 0:10:24]} b5 {[%emt 0:06:58]} 17. Ne3 {[%emt 0:11:55]} c4 {[%emt 0:06:46]} 18. Qc2 {[%emt 0:02:05]} Bb4 {[%emt 0:05:01]} 19. Bd2 {[%emt 0:03:29]} Bxd2 {[%emt 0:01:04]} 20. Qxd2 {[%emt 0:00:35]} Nc5 {[%emt 0:00:52]} 21. e5 {[%emt 0:12:03]} Nxd5 {[%emt 0:01:25]} 22. Bxd5 {[%emt 0:04:19]} exd5 {[%emt 0:00:03]} 23. Nxd5 {[%emt 0:06:26]} Qe6 {[%emt 0:06:41]} 24. Nf4 {[%emt 0:01:13]} Qh6 {[%emt 0:02:53]} 25. Qd6 {[%emt 0:15:33]} Kh8 {[%emt 0:13:04]} 26. Kg2 {[%emt 0:00:05]} Kg8 {[%emt 0:00:04]} 27. Kg1 {[%emt 0:00:05]} Kh8 {[%emt 0:00:03]} 28. Kg2 {[%emt 0:00:04]} Kg8 {[%emt 0:00:03]} 29. Kg1 {[%emt 0:00:04]} Kh8 {[%emt 0:00:02]} 30. Kg2 {[%emt 0:00:05]} Kg8 {[%emt 0:01:11]} 1/2-1/2

[Event "36th Indian-ch U13 Girls 2023"]
[Site "Secunderabad"]
[Date "2023.12.08"]
[Round "8.6"]
[White "Pratyasha Jena"]
[Black "Vaishnavi S K"]
[Result "1/2-1/2"]
[ECO "C78"]
[WhiteElo "1603"]
[BlackElo "1417"]
[Annotator "NA RC"]
[PlyCount "103"]
[EventDate "2023.12.04"]
[EventType "swiss"]
[EventCountry "IND"]
[SourceTitle "playchess.com"]
[Source "ChessBase"]
[SourceQuality "1"]
[TimeControl "5400+30"]

1. e4 {[%emt 0:00:08]} e5 {[%emt 0:00:18]} 2. Nf3 {[%emt 0:00:05]} Nc6 {[%emt 0:00:06]} 3. Bb5 {[%emt 0:00:22]} a6 {[%emt 0:00:14]} 4. Ba4 {[%emt 0:00:07]} Nf6 {[%emt 0:00:15]} 5. d3 {[%emt 0:00:06]} b5 {[%emt 0:00:04]} 6. Bb3 {[%emt 0:00:06]} Bc5 {[%emt 0:00:34]} 7. c3 {[%emt 0:00:41]} d6 {[%emt 0:00:29]} 8. O-O {[%emt 0:00:21]} h6 {[%emt 0:01:17]} 9. a4 {[%emt 0:00:32]} Rb8 {[%emt 0:00:10]} 10. Re1 {[%emt 0:03:04]} O-O {[%emt 0:00:06]} 11. h3 {[%emt 0:00:24]} Bd7 {[%emt 0:03:20]} 12. Nbd2 {[%emt 0:03:55]} Bb6 {[%emt 0:03:24]} 13. Nf1 {[%emt 0:06:51]} b4 {[%emt 0:12:39]} 14. Be3 {[%emt 0:09:03]} bxc3 {[%emt 0:08:36]} 15. bxc3 {[%emt 0:00:09]} Qc8 {[%emt 0:04:42]} 16. Rb1 {[%emt 0:07:52]} Ba5 {[%emt 0:02:45]} 17. Bd2 {[%emt 0:02:52]} Be6 {[%emt 0:03:25]} 18. Ne3 {[%emt 0:10:06]} Ne7 {[%emt 0:02:59]} 19. Nc4 {[%emt 0:05:42]} Bb6 {[%emt 0:03:34]} 20. Nxb6 {[%emt 0:00:23]} Rxb6 {[%emt 0:00:42]} 21. Bxe6 {[%emt 0:00:33]} Qxe6 {[%emt 0:02:49]} 22. Rxb6 {[%emt 0:00:37]} cxb6 {[%emt 0:00:08]} 23. Qc2 {[%emt 0:00:39]} Rc8 {[%emt 0:01:24]} 24. Qb2 {[%emt 0:16:49]} Nd7 {[%emt 0:02:16]} 25. c4 {[%emt 0:07:49]} Nc5 {[%emt 0:13:44]} 26. Qxb6 {[%emt 0:06:38]} Rc6 {[%emt 0:07:00]} 27. Qb8+ {[%emt 0:03:35]} Rc8 {[%emt 0:00:19]} 28. Qb1 {[%emt 0:00:23]} Nxa4 {[%emt 0:01:04]} 29. Qc2 {[%emt 0:00:27]} Nc5 {[%emt 0:01:46]} 30. Be3 {[%emt 0:02:19]} Nc6 {[%emt 0:00:55]} 31. Rb1 {[%emt 0:00:34]} a5 {[%emt 0:04:08]} 32. Bxc5 {[%emt 0:02:06]} dxc5 {[%emt 0:00:14]} 33. Rb5 {[%emt 0:00:04]} Nb4 {[%emt 0:00:58]} 34. Qc3 {[%emt 0:01:39]} Qd6 {[%emt 0:07:26]} 35. Nxe5 {[%emt 0:05:48]} f6 {[%emt 0:01:33]} 36. Nf3 {[%emt 0:01:44]} Nxd3 {[%emt 0:01:11]} 37. Rxa5 {[%emt 0:00:48]} Nf4 {[%emt 0:02:02]} 38. Qd2 {[%emt 0:01:25]} Qc7 {[%emt 0:00:53]} 39. Ra1 {[%emt 0:00:46]} Rd8 {[%emt 0:00:23]} 40. Qe1 {[%emt 0:00:42]} Rd3 {[%emt 0:01:19]} 41. Rd1 {[%emt 0:00:57]} Nxh3+ {[%emt 0:00:45]} 42. Kf1 {[%emt 0:00:38]} Nf4 {[%emt 0:01:19]} 43. Rxd3 {[%emt 0:00:08]} Nxd3 {[%emt 0:00:08]} 44. Qd2 {[%emt 0:00:35]} Ne5 {[%emt 0:00:52]} 45. Nxe5 {[%emt 0:00:18]} Qxe5 {[%emt 0:01:55]} 46. Qd5+ {[%emt 0:00:05]} Kh7 {[%emt 0:00:45]} 47. Qxe5 {[%emt 0:00:12]} fxe5 {[%emt 0:00:04]} 48. Ke2 {[%emt 0:00:05]} Kg6 {[%emt 0:00:12]} 49. Kf3 {[%emt 0:01:59]} Kf6 {[%emt 0:00:12]} 50. Kg4 {[%emt 0:00:16]} g6 {[%emt 0:01:01]} 51. g3 {[%emt 0:00:34]} Ke6 {[%emt 0:00:43]} 52. Kh4 {[%emt 0:02:29]} 1/2-1/2

[Event "36th Indian-ch U13 Girls 2023"]
[Site "Secunderabad"]
[Date "2023.12.08"]
[Round "8.7"]
[White "Samhita Pungavanam"]
[Black "Akshaya Sathi"]
[Result "0-1"]
[ECO "B50"]
[WhiteElo "1437"]
[BlackElo "1542"]
[Annotator "NA RC"]
[PlyCount "116"]
[EventDate "2023.12.04"]
[EventType "swiss"]
[EventCountry "IND"]
[SourceTitle "playchess.com"]
[Source "ChessBase"]
[SourceQuality "1"]
[TimeControl "5400+30"]

1. e4 {[%emt 0:05:30]} c5 {[%emt 0:00:26]} 2. Nf3 {[%emt 0:01:54]} d6 {[%emt 0:00:13]} 3. c3 {[%emt 0:00:03]} Nf6 {[%emt 0:00:36]} 4. Be2 {[%emt 0:02:09]} g6 {[%emt 0:00:30]} 5. O-O {[%emt 0:01:44]} Bg7 {[%emt 0:00:54]} 6. Bb5+ {[%emt 0:02:35]} Nbd7 {[%emt 0:04:12]} 7. Re1 {[%emt 0:08:45]} O-O {[%emt 0:02:12]} 8. d4 {[%emt 0:03:26]} a6 {[%emt 0:08:15]} 9. Bxd7 {[%emt 0:11:10]} Nxd7 {[%emt 0:01:00]} 10. Be3 {[%emt 0:00:41]} b6 {[%emt 0:08:24]} 11. Qd2 {[%emt 0:10:54]} Bb7 {[%emt 0:06:13]} 12. Bh6 {[%emt 0:07:09]} Rc8 {[%emt 0:11:39]} 13. Na3 {[%emt 0:03:30]} Nf6 {[%emt 0:11:38]} 14. Bxg7 {[%emt 0:06:30]} Kxg7 {[%emt 0:00:09]} 15. e5 {[%emt 0:00:57]} Nd5 {[%emt 0:06:30]} 16. e6 {[%emt 0:06:18]} h6 {[%emt 0:02:02]} 17. c4 {[%emt 0:10:17]} Nc7 {[%emt 0:04:23]} 18. dxc5 {[%emt 0:03:09]} bxc5 {[%emt 0:08:07]} 19. Qc3+ {[%emt 0:01:31]} Kh7 {[%emt 0:03:05]} 20. exf7 {[%emt 0:03:33]} Rxf7 {[%emt 0:00:31]} 21. Nh4 {[%emt 0:00:40]} e6 {[%emt 0:09:27]} 22. Qg3 {[%emt 0:01:50]} Qg5 {[%emt 0:01:06]} 23. Re3 {[%emt 0:03:51]} Rcf8 {[%emt 0:02:34]} 24. Rb3 {[%emt 0:02:22]} Ba8 {[%emt 0:05:44]} 25. Rf1 {[%emt 0:01:59]} Rxf2 {[%emt 0:01:47]} 26. Nf3 {[%emt 0:00:31]} Rxf1+ {[%emt 0:00:42]} 27. Kxf1 {[%emt 0:00:02]} Qc1+ {[%emt 0:00:36]} 28. Qe1 {[%emt 0:00:53]} Qf4 {[%emt 0:00:46]} 29. Qa5 {[%emt 0:00:35]} Rf7 {[%emt 0:00:35]} 30. Qe1 {[%emt 0:00:23]} Qxh2 {[%emt 0:00:32]} 31. Qe2 {[%emt 0:00:36]} Qg3 {[%emt 0:00:32]} 32. Nc2 {[%emt 0:00:24]} e5 {[%emt 0:00:35]} 33. Kg1 {[%emt 0:00:19]} Bxf3 {[%emt 0:00:12]} 34. Rxf3 {[%emt 0:00:08]} Rxf3 {[%emt 0:00:11]} 35. Qxf3 {[%emt 0:00:04]} Qxf3 {[%emt 0:00:03]} 36. gxf3 {[%emt 0:00:05]} Kg7 {[%emt 0:00:51]} 37. Ne3 {[%emt 0:00:48]} Kf6 {[%emt 0:00:12]} 38. a3 {[%emt 0:00:35]} a5 {[%emt 0:00:51]} 39. Kg2 {[%emt 0:01:07]} Kg5 {[%emt 0:00:28]} 40. Kg3 {[%emt 0:00:34]} h5 {[%emt 0:00:21]} 41. Ng2 {[%emt 0:00:44]} Ne6 {[%emt 0:00:26]} 42. Ne3 {[%emt 0:00:37]} Nf4 {[%emt 0:00:32]} 43. Nc2 {[%emt 0:00:23]} h4+ {[%emt 0:00:50]} 44. Kh2 {[%emt 0:00:23]} Nd3 {[%emt 0:00:16]} 45. b3 {[%emt 0:00:25]} Kf4 {[%emt 0:00:23]} 46. Kg2 {[%emt 0:00:38]} g5 {[%emt 0:00:28]} 47. Na1 {[%emt 0:00:42]} Ne1+ {[%emt 0:00:22]} 48. Kf2 {[%emt 0:00:19]} Nxf3 {[%emt 0:00:06]} 49. Nc2 {[%emt 0:00:20]} h3 {[%emt 0:00:17]} 50. b4 {[%emt 0:00:05]} cxb4 {[%emt 0:01:40]} 51. axb4 {[%emt 0:00:03]} axb4 {[%emt 0:00:02]} 52. Nxb4 {[%emt 0:00:01]} g4 {[%emt 0:00:56]} 53. Nd5+ {[%emt 0:00:42]} Ke4 {[%emt 0:00:44]} 54. Nf6+ {[%emt 0:00:13]} Kf5 {[%emt 0:00:14]} 55. Ne8 {[%emt 0:00:15]} Ne1 {[%emt 0:00:44]} 56. Nxd6+ {[%emt 0:00:45]} Kf4 {[%emt 0:00:03]} 57. Kg1 {[%emt 0:00:19]} Nf3+ {[%emt 0:00:21]} 58. Kf1 {[%emt 0:01:06]} g3 {[%emt 0:02:02]} 0-1